Cogmind - Beta 11 X6 @@@ ROGUE MODE // 2021.07.24 @ 18:31:34 Player: AlmondRoll Result: Destroyed by as-23811 with Assembled Blade Performance ------------- Evolutions (0) 0 Regions Visited (2) 400 Robots Destroyed (18) 90 Value Destroyed (316) 316 Prototype IDs (0) 0 Alien Tech Used (0) 0 Bonus (0) 0 TOTAL SCORE: 806 Bonus ------- None Cogmind --------- Core Integrity 0/250 Matter 296/300 Energy 100/100 System Corruption 2% Temperature Cool (0) Movement Core (1400) Ox27 Location -10/Mines Parts ------- > --- POWER (1) -------- (None) > --- PROPULSION (2) --- (None) > --- UTILITY (2) ------ Huge Storage Unit > --- WEAPON (2) ------- Heavy Assault Rifle > --- INVENTORY (25) --- Ion Engine Light Treads Light Treads Light Treads Light Treads Wheel Compact Wheel Compact Wheel Flight Unit Flight Unit Flight Unit High-capacity Battery (250) High-capacity Matter Pod (91) Machine Analyzer Light Armor Plating Light Armor Plating Medium Armor Plating Medium Armor Plating Medium Armor Plating Hacking Suite Recalibrator Light Assault Rifle Light Assault Rifle Heavy Assault Rifle Heavy Assault Rifle Peak State ------------ > --- POWER ------------ Ion Engine > --- PROPULSION ------- Compact Wheel Compact Wheel > --- UTILITY ---------- Huge Storage Unit Medium Armor Plating > --- WEAPON ----------- Heavy Assault Rifle Heavy Assault Rifle > --- INVENTORY -------- Ion Engine Light Treads Light Treads Light Treads Light Treads Wheel Compact Wheel Flight Unit Flight Unit Flight Unit High-capacity Battery High-capacity Matter Pod Light Armor Plating Light Armor Plating Medium Armor Plating Medium Armor Plating Medium Armor Plating Hacking Suite Light Assault Rifle Light Assault Rifle Light Assault Rifle Heavy Assault Rifle Heavy Assault Rifle [Rating: 13] Favorites ----------- Power Ion Engine Engine Ion Engine Propulsion Compact Wheel Leg Aluminum Leg Wheel Compact Wheel Utility Medium Armor Plating Storage Huge Storage Unit Protection Medium Armor Plating Weapon Heavy Assault Rifle Energy Gun Small Laser Ballistic Gun Heavy Assault Rifle Build | -11 -10 -10 ------- Run | Scr Mat Min Slots Evolved . | . . . Power . | . . . Propulsion . | . . . Utility . | . . . Weapon . | . . . Parts Attached 10 | 2 8 . Power . | . . . Engine . | . . . Core . | . . . Reactor . | . . . Propulsion 4 | 2 2 . Treads . | . . . Leg . | . . . Wheel 4 | 2 2 . Hover . | . . . Flight . | . . . Utility 4 | . 4 . Device . | . . . Storage 2 | . 2 . Processor . | . . . Hackware . | . . . Protection 2 | . 2 . Artifact . | . . . Weapon 2 | . 2 . Energy Gun . | . . . Energy Cannon . | . . . Ballistic Gun 2 | . 2 . Ballistic Cannon . | . . . Launcher . | . . . Special Weapon . | . . . Impact Weapon . | . . . Slashing Weapon . | . . . Piercing Weapon . | . . . Special Melee Weapon . | . . . Unidentified Prototypes . | . . . Parts Lost 4 | . . 4 Power 1 | . . 1 Propulsion 2 | . . 2 Utility . | . . . Weapon 1 | . . 1 Highest Loss Streak 4 | . . 4 Average Slot Usage (%) 95 | . 96 79 Engine 13 | . 14 8 Wheel 27 | . 27 22 Storage 14 | . 14 14 Protection 11 | . 11 8 Energy Gun 2 | . 2 . Ballistic Gun 25 | . 25 25 Naked Turns . | . . . Heaviest Build 98 | 12 98 98 Greatest Support 32 | 26 32 32 Greatest Overweight (x) 3 | . 3 3 Average Overweight (x) 2 | . 2 2 Largest Inventory Capacity 25 | 8 25 25 Average Capacity 22 | 8 22 25 Most Carried 25 | 6 25 25 Average Carried 18 | 5 18 25 Final Capacity 25 | 8 25 25 Final Carried 25 | 6 25 25 Class Distribution -------------------- 100% | Mutant Dominant Class ---------------- Mutant | -10/Materials Mutant | -10/Mines Resources | -11 -10 -10 ----------- Run | Scr Mat Min Matter Collected 640 | 223 417 . Remotely . | . . . Salvage Created 605 | 93 493 19 Parts 44 | 4 40 . Haulers Intercepted 2 | . 2 . Recyclers Shooed 1 | . 1 . Parts Field Recycled . | . . . Retrieved Matter . | . . . Parts Self-Destructed . | . . . Prevented . | . . . Kills | -11 -10 -10 ------- Run | Scr Mat Min Combat Hostiles Destroyed 11 | . 10 1 Guns 11 | . 10 1 Classes Destroyed 9 | 1 7 1 Builder 1 | . 1 . Hauler 2 | . 2 . Recycler 1 | 1 . . Mechanic 1 | . 1 . Operator 2 | . 2 . Watcher 1 | . 1 . Swarmer 5 | . 5 . Grunt 5 | . 5 . Assembled 1 | . . 1 Best Kill Streak 6 | 1 6 1 Combat Bots Only 4 | . 4 1 Max Kills in Single Turn 1 | 1 1 1 Gunslinging . | . . . Exploded . | . . . Melee . | . . . Uniques/NPCs Destroyed . | . . . Combat | -11 -10 -10 -------- Run | Scr Mat Min Damage Taken 765 | . 268 497 Core 261 | . 83 178 Absorbed by Shields . | . . . Core Remaining (%) 100 | 100 . . Volleys Fired 55 | 3 47 5 Largest 2 | 2 2 2 Hottest 60 | 60 60 46 Shots Fired 110 | 6 94 10 Gun 110 | 6 94 10 Cannon . | . . . Launcher . | . . . Special . | . . . Kinetic 101 | 3 88 10 Thermal 9 | 3 6 . Explosive . | . . . Electromagnetic . | . . . Robot Hit Streak 10 | 3 10 5 Robot Miss Streak 4 | 2 4 4 Penetration Max . | . . . Secondary Targets . | . . . Shots Hit Robots 68 | 3 61 4 Core Hits 29 | 2 22 5 Critical Kills 1 | . 1 . Critical Parts Destroyed 1 | . 1 . Critical Strikes 2 | . 2 . Destroy 2 | . 2 . Melee Attacks . | . . . Impact . | . . . Slashing . | . . . Piercing . | . . . Sneak Attacks . | . . . Combat Hostiles . | . . . Follow-up Attacks . | . . . Damage Inflicted 1014 | 26 893 95 Guns 986 | 26 872 88 Cannons . | . . . Explosions . | . . . Melee . | . . . Ramming 28 | . 21 7 Kinetic 919 | 15 816 88 Thermal 67 | 11 56 . Explosive . | . . . Electromagnetic . | . . . Impact . | . . . Slashing . | . . . Piercing . | . . . Highest Corruption 2 | . 2 2 Average Corruption 2 | . 2 2 Corruption Purged . | . . . Effects 3 | . 3 . Message Errors 1 | . 1 . Heat Flow Errors 1 | . 1 . Data Loss (minor) 1 | . 1 . Overload Shots . | . . . Overflow Damage . | . . . Projectiles . | . . . Explosions . | . . . Melee . | . . . Knockbacks . | . . . Impact . | . . . Kinetic . | . . . Secondary . | . . . Self-Inflicted Damage 13 | . 10 3 Shots . | . . . Rammed 4 | . 2 2 Targets Rammed 4 | . 2 2 Kicked . | . . . Crushed . | . . . Highest Temperature 250 | 20 250 . Average Temperature 48 | 15 52 . Received Heat Transfer 42 | . 42 . Siege Activations . | . . . Robots Corrupted . | . . . Combat Hostiles . | . . . Parts Fried . | . . . Impact Corruptions . | . . . Robots Melted . | . . . Combat Hostiles . | . . . Parts Melted . | . . . Heat Transferred 150 | 25 125 . Parts Sabotaged . | . . . Parts Stolen . | . . . Parts Stripped . | . . . Power Chain Reactions . | . . . Missiles Intercepted . | . . . Alert | -11 -10 -10 ------- Run | Scr Mat Min Peak Influence 251 | 5 251 5 Initial 5 | . 3 5 Average 115 | 3 126 2 Maximum Alert Level 1 | . 1 . Low Security (%) 63 | 100 60 100 Level 1 36 | . 39 . Level 2 . | . . . Level 3 . | . . . Level 4 . | . . . Level 5 . | . . . High Security . | . . . Max Security . | . . . Squads Dispatched 4 | . 4 . Investigation 2 | . 2 . Extermination . | . . . Reinforcement 2 | . 2 . Assault . | . . . Garrison . | . . . Intercept . | . . . Construction Impeded . | . . . Haulers Reinforced . | . . . Active Scanning Responses . | . . . Cargo Convoy Interrupts . | . . . Stealth | -11 -10 -10 --------- Run | Scr Mat Min Distress Signals 2 | . 2 . Communications Jammed . | . . . Distress Signals . | . . . Times Spotted 29 | . 21 8 Peak Tracking Total 7 | . 4 7 Tactical Retreats 3 | . 3 . Traps | -11 -10 -10 ------- Run | Scr Mat Min Traps Triggered 2 | . 2 . Indirectly . | . . . Trap Hack Attempts . | . . . Triggered . | . . . Disarmed . | . . . Reprogrammed 3 | . 3 . Reused . | . . . Traps Extracted . | . . . Installed . | . . . Triggered . | . . . Machines | -11 -10 -10 ---------- Run | Scr Mat Min Machines Disabled 2 | . 1 1 Max in Single Turn 1 | . 1 1 Machines Sabotaged . | . . . Garrisons Compromised . | . . . Overloaded Fab Kills . | . . . Fab Network Shutdowns . | . . . Hacking | -11 -10 -10 --------- Run | Scr Mat Min Machines Accessed 7 | . 7 . Terminals 6 | . 6 . Fabricators . | . . . Repair Stations 1 | . 1 . Recycling Units . | . . . Scanalyzers . | . . . Garrison Access . | . . . Total Hacks 20 | . 20 . Successful 14 | . 14 . Failed 5 | . 5 . Catastrophic 1 | . 1 . Database Lockouts 1 | . 1 . Manual 10 | . 10 . Terminals 16 | . 16 . Fabricators . | . . . Repair Stations 4 | . 4 . Recycling Units . | . . . Scanalyzers . | . . . Garrison Access . | . . . Terminal Hacks 5 | . 5 . Robot Analysis 2 | . 2 . Unreport Threat 1 | . 1 . Locate Traps 1 | . 1 . Reprogram Traps 1 | . 1 . Fabricator Hacks . | . . . Repair Station Hacks 4 | . 4 . Scan Component 2 | . 2 . Repair 2 | . 2 . Recycling Unit Hacks . | . . . Scanalyzer . | . . . Garrison Access Hacks . | . . . Unauthorized Hacks 5 | . 5 . Terminals 5 | . 5 . Assimilate 1 | . 1 . Botnet 3 | . 3 . Operators 1 | . 1 . Fabricators . | . . . Repair Stations . | . . . Recycling Units . | . . . Scanalyzers . | . . . Garrison Access . | . . . Data Cores Recovered . | . . . Used . | . . . Hacking Detections 5 | . 5 . Full Trace Events 1 | . 1 . Feedback Events . | . . . Feedback Blocked . | . . . Robot Schematics Acquired . | . . . Robots Built . | . . . Matter . | . . . Time . | . . . Total Robot Build Rating . | . . . Part Schematics Acquired . | . . . Parts Built . | . . . Matter . | . . . Time . | . . . Total Part Build Rating . | . . . Parts Repaired 2 | . 2 . Time 58 | . 58 . Parts Recycled . | . . . Recycled Matter . | . . . Retrieved Matter . | . . . Retrieved Components . | . . . Parts Scanalyzed . | . . . Part Schematics Acquired . | . . . Parts Damaged . | . . . Bothacking | -11 -10 -10 ------------ Run | Scr Mat Min Used RIF Installer . | . . . Robots Hacked . | . . . Non-combat . | . . . Combat . | . . . Robot Hacks Applied . | . . . Relay Couplers Released . | . . . Robots Rewired . | . . . Allies Hacked . | . . . Hacks Repelled . | . . . Allies | -11 -10 -10 -------- Run | Scr Mat Min Total Allies . | . . . Largest Group . | . . . Highest-Rated Group . | . . . Highest-Rated Ally . | . . . Total Orders . | . . . Ally Attacks . | . . . Total Damage . | . . . Kills . | . . . Allies Corrupted . | . . . Allies Melted . | . . . Intel | -11 -10 -10 ------- Run | Scr Mat Min Robot Analysis Total 2 | . 2 . Derelict Logs Recovered . | . . . Drone Launches . | . . . Drone Recoveries . | . . . Exploration | -11 -10 -10 ------------- Run | Scr Mat Min Turns Passed 903 | 35 823 45 Spaces Moved 467 | 25 427 15 Core . | . . . Treads . | . . . Legs . | . . . Wheels 467 | 25 427 15 Hover . | . . . Flight . | . . . Fastest Speed 90 | 90 90 130 Average Speed 129 | 90 131 143 Slowest Speed 145 | 90 145 145 Overloaded Moves . | . . . Propulsion Burnouts . | . . . Robots Hopped . | . . . Cave-ins Triggered . | . . . Exploration Rate (%) 30 | 4 83 5 Regions Visited 2 Branch Regions 1 Pre-discovered Areas . | . . . Known Exits Taken . | . . . Unknown Exits Taken 2 | 1 1 . Scrap Searched . | . . . Spaces Dug . | . . . Terrain Destroyed . | . . . Melee . | . . . Projectile . | . . . AOE . | . . . Terrain Rammed . | . . . Walls Destroyed . | . . . Machines Disabled . | . . . Actions | -11 -10 -10 --------- Run | Scr Mat Min Total 654 | 33 599 22 Wait 80 | . 80 . Move 465 | 24 426 15 Hop . | . . . Pick Up 28 | 2 26 . Fast Attach 4 | . 4 . Attach 3 | 2 1 . Detach . | . . . Swap 3 | . 3 . Drop 12 | 2 10 . Fire 55 | 3 47 5 Melee . | . . . Ram 4 | . 2 2 Kick . | . . . Crush . | . . . Escape Stasis . | . . . Rewire . | . . . Trap . | . . . Miscellaneous . | . . . Route ------- -11/Scrapyard -10/Materials (discovered 5 exits: [*Mat x3] / [*Min x2]) -10/Mines History --------- Turn | Location | Event 13 | -11/Scrapyard | Discovered new exit (range 3) 36 | -11/Scrapyard | Entered Materials 303 | -10/Materials | Discovered new exit (range 16) 313 | -10/Materials | Central database locked down 314 | -10/Materials | Build established: Mutant 403 | -10/Materials | Discovered new exit (range 14) 555 | -10/Materials | Discovered new exit (range 15) 635 | -10/Materials | Repaired Med. Armor Plating 662 | -10/Materials | Repaired Com. Wheel 752 | -10/Materials | Discovered new exit (range 14) 819 | -10/Materials | Discovered new exit (range 13) 859 | -10/Materials | Entered Mines 860 | -10/Mines | Assembled infested the area 896 | -10/Mines | Core integrity fell below 50% 903 | -10/Mines | Core integrity fell below 20% 904 | -10/Mines | Destroyed by as-23811 with Assembled Blade Last Messages --------------- LOCATION=UNKNOWN GOAL=ESCAPE 00860_ ALERT: Infestation in the mines, dispatching Demolisher response squad. 00860_ K-01 Serf cleans the Core Extractor. 00871_ K-01 Serf collects debris. 00877_ as-85484 sneak attacks. 00877_ K-01 Serf destroyed. 00877_ K-01 Serf collects debris. 00884_ Ion Engine destroyed. 00887_ Med. Armor Plating severed. 00890_ as-85484 destroyed. 00893_ Core Extractor disabled. 00893_ Com. Wheel destroyed. 00894_ Hvy. Assault Rifle destroyed. 00896_ Slammed into as-23811. 00896_ Hvy. Assault Rifle permanently disabled. 00896_ Destabilizing: Short circuit. 00897_ Com. Wheel destroyed. 00898_ Slammed into as-23811. Map ----- +----------------------------------------------------+ | ?????????????????????????????????????????????????? | | ?????????????????????????????????????????????????? | | ?????????????????????????????????????????????????? | | ?????????????????????????????????????????????????? | | ?????????????????????????????????????????????????? | | ?????????????????????????????????????????????????? | | ???????????????????????????##????????????????????? | | ??????????????????????????? ????????????????????? | | ???????????????????????????# ????????????????????? | | ???????????????????????????# #???????????????????? | | ???????????????????????????# ???????????????????? | | ????????????????????????#### ###?????????????????? | | ????????????????????????# #?????????????????? | | ????????????????????????# ###???????????????? | | ????????????????????????# """ ????????????????? | | ????????????????????????# """ #?????????????????? | | ????????????????????????# """ #?????????????????? | | ????????????????????????# #?????????????????? | | ????????????????????????# = #?????????????????? | | ????????????????????????# %=#?????????????????? | | ????????????????????????# aa #?????????????????? | | ????????????????????????#a #?????????????????? | | ????????????????????????# """ #?????????????????? | | ????????????????????????# """ #?????????????????? | | ????????????????????????#a"" #?????????????????? | | ????????????????????????#@aaa #?????????????????? | | ????????????????????????########?????????????????? | | ?????????????????????????????????????????????????? | | ?????????????????????????????????????????????????? | | ?????????????????????????????????????????????????? | | ?????????????????????????????????????????????????? | | ?????????????????????????????????????????????????? | | ?????????????????????????????????????????????????? | | ?????????????????????????????????????????????????? | | ?????????????????????????????????????????????????? | | ?????????????????????????????????????????????????? | | ?????????????????????????????????????????????????? | | ?????????????????????????????????????????????????? | | ?????????????????????????????????????????????????? | | ?????????????????????????????????????????????????? | | ?????????????????????????????????????????????????? | | ?????????????????????????????????????????????????? | | ?????????????????????????????????????????????????? | | ?????????????????????????????????????????????????? | | ?????????????????????????????????????????????????? | | ?????????????????????????????????????????????????? | | ?????????????????????????????????????????????????? | | ?????????????????????????????????????????????????? | | ?????????????????????????????????????????????????? | | ?????????????????????????????????????????????????? | +----------------------------------------------------+ Best States ------------- Heat Dissipation 25 Energy Generation 10 Energy Capacity 250 Matter Stores 300 Matter Capacity 300 Sight Range 16 Terrain Scan Density 10 Armor Coverage 225 Evasion (%) 42 Item Schematics ----------------- None Robot Schematics ------------------ None Fabricated ------------ Nothing Alien Tech Used ----------------- None Achievements -------------- None Challenges ------------ None Game ------ Seed DefenseAnalysisBeamcaster Manual? 0 Play Time 00:07:13 Cumulative 286.2 hours Start 2021.07.24 @ 18:24:37 End 2021.07.24 @ 18:31:34 Sessions 1 Manual Loads 0 Difficulty Rogue Special Mode None Game No. 159 Rogue 159 Adventurer 0 Explorer 0 Win Type - Total 8 Types 6/0/1/1/0/0/0/0/0 Lore% 78 Gallery% 83 Achievement% 63 Wizard Run 0 Options --------- ASCII 0 Keyboard 0 Movement Numpad Keybinds 0 Fullscreen 1 Font 18/SmallcapsGlow Map View 76x50 Tactical HUD 1 Map Filters NONE Filters NONE Steam 1 RUN: 22a91e46-03e2-4f00-9c1f-6edc2c87cc16